[Event "Early-Titled-Tuesday-Blitz-February-06-2024"]
[Site "Chess.com"]
[Date "2024.02.06"]
[Round "4"]
[White "vi_pranav"]
[Black "GMRAVEN_ON_YOUTUBE"]
[Result "1-0"]
[WhiteElo "3048"]
[BlackElo "2778"]
[TimeControl "180+1"]
[EndTime "8:41:04 PST"]
[Termination "vi_pranav won on time"]

1. e4 {[%clk 0:03:00.9]} 1... c5 {[%clk 0:02:59.3]} 2. Nf3 {[%clk 0:03:00.9]}
2... e6 {[%clk 0:02:59.2]} 3. b3 {[%clk 0:03:00.3]} 3... b6 {[%clk 0:02:59.2]}
4. Bb2 {[%clk 0:03:00.4]} 4... Bb7 {[%clk 0:02:59.8]} 5. Nc3 {[%clk 0:03:01]}
5... Nc6 {[%clk 0:02:55.3]} 6. g3 {[%clk 0:03:00.1]} 6... Be7 {[%clk 0:02:53.6]}
7. Bg2 {[%clk 0:02:59.9]} 7... d6 {[%clk 0:02:50.3]} 8. O-O {[%clk 0:02:59.7]}
8... Nf6 {[%clk 0:02:50.5]} 9. d4 {[%clk 0:02:59.5]} 9... cxd4 {[%clk
0:02:50.6]} 10. Nxd4 {[%clk 0:03:00.4]} 10... Nxd4 {[%clk 0:02:41.8]} 11. Qxd4
{[%clk 0:02:58.9]} 11... O-O {[%clk 0:02:41.2]} 12. Rad1 {[%clk 0:02:54.4]}
12... Qc7 {[%clk 0:02:36.1]} 13. h3 {[%clk 0:02:53.1]} 13... a6 {[%clk
0:02:25.3]} 14. a4 {[%clk 0:02:43.3]} 14... Rac8 {[%clk 0:02:21.7]} 15. Rfe1
{[%clk 0:02:40.5]} 15... Rfd8 {[%clk 0:02:19.4]} 16. Re2 {[%clk 0:02:36.4]}
16... Qc5 {[%clk 0:01:59.3]} 17. Qd3 {[%clk 0:02:09.6]} 17... Nd7 {[%clk
0:01:56.5]} 18. Nb1 {[%clk 0:02:03.8]} 18... Ne5 {[%clk 0:01:52.5]} 19. Qd2
{[%clk 0:02:01.5]} 19... b5 {[%clk 0:01:42]} 20. axb5 {[%clk 0:01:41.6]} 20...
axb5 {[%clk 0:01:42.9]} 21. Bd4 {[%clk 0:01:41.6]} 21... Qc7 {[%clk 0:01:32.6]}
22. Qe3 {[%clk 0:01:41.2]} 22... Rd7 {[%clk 0:01:20]} 23. Red2 {[%clk 0:01:37]}
23... Nc6 {[%clk 0:01:04.9]} 24. Bb6 {[%clk 0:01:36.4]} 24... Qb8 {[%clk
0:01:05.1]} 25. Nc3 {[%clk 0:01:36.5]} 25... b4 {[%clk 0:00:59.1]} 26. Na4
{[%clk 0:01:35.1]} 26... Ba6 {[%clk 0:00:57.3]} 27. Kh2 {[%clk 0:01:15.5]} 27...
Bb5 {[%clk 0:00:52.1]} 28. f4 {[%clk 0:01:09]} 28... e5 {[%clk 0:00:43.9]} 29.
fxe5 {[%clk 0:01:02.6]} 29... Nxe5 {[%clk 0:00:43.9]} 30. Bd4 {[%clk 0:01:03.1]}
30... Rdc7 {[%clk 0:00:39.9]} 31. Nb6 {[%clk 0:00:58.1]} 31... Re8 {[%clk
0:00:23.1]} 32. Nd5 {[%clk 0:00:53.4]} 32... Rb7 {[%clk 0:00:22.8]} 33. Bb2
{[%clk 0:00:36.5]} 33... Bf8 {[%clk 0:00:16.1]} 34. Nxb4 {[%clk 0:00:34]} 34...
Bf1 {[%clk 0:00:15.1]} 35. Rxf1 {[%clk 0:00:30.7]} 35... Rxb4 {[%clk 0:00:15]}
36. Qf2 {[%clk 0:00:31.4]} 36... f6 {[%clk 0:00:14.7]} 37. Rfd1 {[%clk 0:00:30]}
37... Nc4 {[%clk 0:00:14.2]} 38. bxc4 {[%clk 0:00:16.1]} 38... Rxb2 {[%clk
0:00:15.1]} 39. Qf5 {[%clk 0:00:12]} 39... Re5 {[%clk 0:00:14.9]} 40. Qd7 {[%clk
0:00:11.1]} 40... Rb7 {[%clk 0:00:14.8]} 41. Qg4 {[%clk 0:00:11.2]} 41... Rg5
{[%clk 0:00:12.3]} 42. Qe6+ {[%clk 0:00:10.5]} 42... Kh8 {[%clk 0:00:12.1]} 43.
Rd5 {[%clk 0:00:09.8]} 43... Re5 {[%clk 0:00:08]} 44. Rxe5 {[%clk 0:00:09.8]}
44... dxe5 {[%clk 0:00:08.9]} 45. Qd5 {[%clk 0:00:06.2]} 45... Rc7 {[%clk
0:00:08]} 46. Bf1 {[%clk 0:00:06.6]} 46... Rc8 {[%clk 0:00:06.4]} 47. Bd3 {[%clk
0:00:04.7]} 47... Bc5 {[%clk 0:00:06.4]} 48. Rf1 {[%clk 0:00:05]} 48... h6
{[%clk 0:00:06.4]} 49. h4 {[%clk 0:00:03.8]} 49... Qb2 {[%clk 0:00:06]} 50. Qf7
{[%clk 0:00:03.9]} 50... Qd4 {[%clk 0:00:05.8]} 51. Kh3 {[%clk 0:00:04.3]} 51...
Qe3 {[%clk 0:00:05.8]} 52. Qg6 {[%clk 0:00:04.9]} 52... Rd8 {[%clk 0:00:03.4]}
53. Qg4 {[%clk 0:00:05.2]} 53... Rb8 {[%clk 0:00:02.5]} 54. Qf3 {[%clk
0:00:04.1]} 54... Qxf3 {[%clk 0:00:02.6]} 55. Rxf3 {[%clk 0:00:05]} 55... Rb2
{[%clk 0:00:03.2]} 56. h5 {[%clk 0:00:05.3]} 56... Kg8 {[%clk 0:00:03.5]} 57.
Kg4 {[%clk 0:00:05.8]} 57... Kf7 {[%clk 0:00:04]} 58. Kf5 {[%clk 0:00:06.2]}
58... Rb1 {[%clk 0:00:04.1]} 59. Kg4 {[%clk 0:00:05.1]} 59... Rh1 {[%clk
0:00:04.1]} 60. Be2 {[%clk 0:00:04.1]} 60... Ke6 {[%clk 0:00:04.3]} 61. Rb3
{[%clk 0:00:03.7]} 61... Rh2 {[%clk 0:00:01.4]} 62. Bd3 {[%clk 0:00:04.1]} 62...
Rf2 {[%clk 0:00:01.6]} 63. Rb5 {[%clk 0:00:04.2]} 63... Kf7 {[%clk 0:00:02.5]}
64. Rxc5 {[%clk 0:00:04.2]} 1-0

[Event "Early-Titled-Tuesday-Blitz-February-06-2024"]
[Site "Chess.com"]
[Date "2024.02.06"]
[Round "4"]
[White "evgchess5"]
[Black "ulises2013"]
[Result "1/2-1/2"]
[WhiteElo "2976"]
[BlackElo "2744"]
[TimeControl "180+1"]
[EndTime "8:41:04 PST"]
[Termination "Game drawn - insufficient material"]

1. e4 {[%clk 0:02:59.4]} 1... g6 {[%clk 0:02:58.7]} 2. d4 {[%clk 0:02:58.6]}
2... Bg7 {[%clk 0:02:59.4]} 3. Nf3 {[%clk 0:02:58.7]} 3... c5 {[%clk 0:02:59.9]}
4. dxc5 {[%clk 0:02:57.3]} 4... Qa5+ {[%clk 0:02:59.7]} 5. Nc3 {[%clk
0:02:57.4]} 5... Nf6 {[%clk 0:02:59.6]} 6. Bd3 {[%clk 0:02:50.2]} 6... Qxc5
{[%clk 0:02:59.2]} 7. O-O {[%clk 0:02:48.2]} 7... Nc6 {[%clk 0:02:58.6]} 8. h3
{[%clk 0:02:43.9]} 8... O-O {[%clk 0:02:56.7]} 9. Be3 {[%clk 0:02:43.5]} 9...
Qa5 {[%clk 0:02:56.8]} 10. a3 {[%clk 0:02:40.6]} 10... d6 {[%clk 0:02:57.1]} 11.
Qd2 {[%clk 0:02:38.9]} 11... a6 {[%clk 0:02:50.7]} 12. Rad1 {[%clk 0:02:33.8]}
12... Qc7 {[%clk 0:02:47.9]} 13. Bh6 {[%clk 0:02:27.8]} 13... Be6 {[%clk
0:02:45.4]} 14. Bxg7 {[%clk 0:02:24.9]} 14... Kxg7 {[%clk 0:02:46.3]} 15. Rfe1
{[%clk 0:02:23.6]} 15... Rac8 {[%clk 0:02:39.9]} 16. Bf1 {[%clk 0:02:17.5]}
16... Ne5 {[%clk 0:02:35.3]} 17. Nd4 {[%clk 0:01:42.1]} 17... Bc4 {[%clk
0:02:19.8]} 18. Bd3 {[%clk 0:01:41.1]} 18... Qb6 {[%clk 0:02:14.1]} 19. Nce2
{[%clk 0:01:25.4]} 19... Bxd3 {[%clk 0:01:44.2]} 20. cxd3 {[%clk 0:01:23.8]}
20... Nc6 {[%clk 0:01:37.7]} 21. Nf3 {[%clk 0:01:15.5]} 21... Rfd8 {[%clk
0:01:31.8]} 22. Ng3 {[%clk 0:01:12.1]} 22... Nd4 {[%clk 0:01:22.5]} 23. Nxd4
{[%clk 0:01:08.5]} 23... Qxd4 {[%clk 0:01:23.4]} 24. Rc1 {[%clk 0:01:07.7]}
24... h6 {[%clk 0:01:15]} 25. Kh2 {[%clk 0:01:00.1]} 25... Rc5 {[%clk
0:01:11.5]} 26. b4 {[%clk 0:00:56.8]} 26... Rcc8 {[%clk 0:01:11.6]} 27. f3
{[%clk 0:00:49.2]} 27... Nd7 {[%clk 0:01:05.3]} 28. Ne2 {[%clk 0:00:47.4]} 28...
Qb6 {[%clk 0:01:00.6]} 29. d4 {[%clk 0:00:44.9]} 29... Nf8 {[%clk 0:00:57.6]}
30. Nf4 {[%clk 0:00:36.8]} 30... e6 {[%clk 0:00:56.1]} 31. Qb2 {[%clk
0:00:28.6]} 31... Kg8 {[%clk 0:00:52.7]} 32. Nd3 {[%clk 0:00:26.6]} 32... Nd7
{[%clk 0:00:48.6]} 33. Nf2 {[%clk 0:00:25.3]} 33... h5 {[%clk 0:00:45.5]} 34.
Qd2 {[%clk 0:00:25]} 34... Kg7 {[%clk 0:00:43.8]} 35. g4 {[%clk 0:00:21.9]}
35... Rxc1 {[%clk 0:00:26.2]} 36. Rxc1 {[%clk 0:00:20.9]} 36... Rh8 {[%clk
0:00:26.7]} 37. Kg2 {[%clk 0:00:20]} 37... hxg4 {[%clk 0:00:21.8]} 38. hxg4
{[%clk 0:00:19.8]} 38... Nb8 {[%clk 0:00:18]} 39. d5 {[%clk 0:00:17.8]} 39... e5
{[%clk 0:00:17.3]} 40. g5 {[%clk 0:00:15.6]} 40... Nd7 {[%clk 0:00:16]} 41. Ng4
{[%clk 0:00:15.5]} 41... Qd8 {[%clk 0:00:15.2]} 42. Rh1 {[%clk 0:00:12]} 42...
Rxh1 {[%clk 0:00:14.6]} 43. Kxh1 {[%clk 0:00:12.7]} 43... Qh8+ {[%clk 0:00:14]}
44. Kg2 {[%clk 0:00:13.2]} 44... Qh4 {[%clk 0:00:12.9]} 45. Qc1 {[%clk
0:00:13.1]} 45... Nf8 {[%clk 0:00:10.3]} 46. Qc7 {[%clk 0:00:09.7]} 46... Qxg5
{[%clk 0:00:10.1]} 47. Qxd6 {[%clk 0:00:09.8]} 47... f5 {[%clk 0:00:10.1]} 48.
Qxe5+ {[%clk 0:00:08.7]} 48... Kg8 {[%clk 0:00:07.6]} 49. Kg3 {[%clk 0:00:05.9]}
49... Nh7 {[%clk 0:00:05.4]} 50. Qe8+ {[%clk 0:00:05.6]} 50... Kg7 {[%clk
0:00:06]} 51. Qd7+ {[%clk 0:00:05.4]} 51... Kg8 {[%clk 0:00:06]} 52. Qe6+ {[%clk
0:00:05.1]} 52... Kg7 {[%clk 0:00:06.4]} 53. Qe5+ {[%clk 0:00:05.2]} 53... Kg8
{[%clk 0:00:06.8]} 54. Qb8+ {[%clk 0:00:04.8]} 54... Kg7 {[%clk 0:00:07]} 55.
Qxb7+ {[%clk 0:00:05.2]} 55... Kg8 {[%clk 0:00:06.9]} 56. Qc8+ {[%clk
0:00:05.1]} 56... Kg7 {[%clk 0:00:07.4]} 57. Qc7+ {[%clk 0:00:05.4]} 57... Kg8
{[%clk 0:00:07.5]} 58. Qb8+ {[%clk 0:00:05.5]} 58... Kg7 {[%clk 0:00:07.7]} 59.
Qe5+ {[%clk 0:00:05.4]} 59... Kg8 {[%clk 0:00:07.8]} 60. d6 {[%clk 0:00:05.7]}
60... fxg4 {[%clk 0:00:07.1]} 61. Qxg5 {[%clk 0:00:05.8]} 61... Nxg5 {[%clk
0:00:08]} 62. d7 {[%clk 0:00:05.1]} 62... Ne6 {[%clk 0:00:08.3]} 63. Kxg4 {[%clk
0:00:05.1]} 63... Kf7 {[%clk 0:00:08.5]} 64. f4 {[%clk 0:00:04.8]} 64... Ke7
{[%clk 0:00:08.8]} 65. f5 {[%clk 0:00:04.8]} 65... gxf5+ {[%clk 0:00:09.7]} 66.
exf5 {[%clk 0:00:05.1]} 66... Nd8 {[%clk 0:00:09.3]} 67. a4 {[%clk 0:00:05.1]}
67... Kxd7 {[%clk 0:00:09.6]} 68. Kg5 {[%clk 0:00:05.3]} 68... Ke7 {[%clk
0:00:09.8]} 69. Kg6 {[%clk 0:00:05.5]} 69... Kf8 {[%clk 0:00:09.2]} 70. Kf6
{[%clk 0:00:05.5]} 70... Nc6 {[%clk 0:00:08.8]} 71. b5 {[%clk 0:00:05.6]} 71...
axb5 {[%clk 0:00:09.3]} 72. axb5 {[%clk 0:00:06.2]} 72... Nb4 {[%clk 0:00:07.2]}
73. b6 {[%clk 0:00:05.9]} 73... Nd5+ {[%clk 0:00:07.4]} 74. Ke6 {[%clk
0:00:05.6]} 74... Nxb6 {[%clk 0:00:08.3]} 75. f6 {[%clk 0:00:05.5]} 75... Na4
{[%clk 0:00:08.9]} 76. f7 {[%clk 0:00:05.9]} 76... Nb2 {[%clk 0:00:09.7]} 77.
Kf6 {[%clk 0:00:05.8]} 77... Nd1 {[%clk 0:00:10.6]} 78. Kg6 {[%clk 0:00:05.7]}
78... Nf2 {[%clk 0:00:11.5]} 79. Kh7 {[%clk 0:00:05.4]} 79... Ne4 {[%clk
0:00:12.2]} 80. Kg6 {[%clk 0:00:05.4]} 80... Nd6 {[%clk 0:00:13.1]} 81. Kh6
{[%clk 0:00:05.4]} 81... Nxf7+ {[%clk 0:00:14]} 1/2-1/2

[Event "Early-Titled-Tuesday-Blitz-February-06-2024"]
[Site "Chess.com"]
[Date "2024.02.06"]
[Round "4"]
[White "Kostya0705"]
[Black "BogdanDeac"]
[Result "0-1"]
[WhiteElo "2619"]
[BlackElo "3021"]
[TimeControl "180+1"]
[EndTime "8:41:15 PST"]
[Termination "BogdanDeac won by resignation"]

1. e4 {[%clk 0:03:00.9]} 1... c6 {[%clk 0:03:00.1]} 2. d4 {[%clk 0:03:00.7]}
2... d5 {[%clk 0:03:01]} 3. e5 {[%clk 0:03:01.5]} 3... Bf5 {[%clk 0:03:00.8]} 4.
Nf3 {[%clk 0:03:01.9]} 4... e6 {[%clk 0:03:01.3]} 5. Be2 {[%clk 0:03:02.5]} 5...
Nd7 {[%clk 0:03:00.5]} 6. O-O {[%clk 0:03:02.4]} 6... a5 {[%clk 0:03:01.1]} 7.
a4 {[%clk 0:03:02.4]} 7... f6 {[%clk 0:03:00.6]} 8. exf6 {[%clk 0:03:02.3]} 8...
Ngxf6 {[%clk 0:02:56.4]} 9. Be3 {[%clk 0:03:01.6]} 9... Bd6 {[%clk 0:02:55.9]}
10. Nbd2 {[%clk 0:03:01.6]} 10... O-O {[%clk 0:02:56]} 11. h3 {[%clk 0:03:01]}
11... Qe7 {[%clk 0:02:51]} 12. Re1 {[%clk 0:03:00.3]} 12... h6 {[%clk
0:02:45.1]} 13. c3 {[%clk 0:02:59.9]} 13... Qf7 {[%clk 0:02:43.6]} 14. Nf1
{[%clk 0:02:58.1]} 14... Ne4 {[%clk 0:02:37.8]} 15. N1h2 {[%clk 0:02:46.8]}
15... Rae8 {[%clk 0:02:20.6]} 16. Bd3 {[%clk 0:02:40.3]} 16... e5 {[%clk
0:02:11]} 17. dxe5 {[%clk 0:02:39.8]} 17... Nxe5 {[%clk 0:02:09.4]} 18. Nxe5
{[%clk 0:02:38.7]} 18... Bxe5 {[%clk 0:02:07.7]} 19. Ng4 {[%clk 0:02:36.6]}
19... Bxg4 {[%clk 0:01:36.6]} 20. Qxg4 {[%clk 0:02:02.8]} 20... Nxf2 {[%clk
0:01:35.2]} 21. Bxf2 {[%clk 0:01:58.7]} 21... Qxf2+ {[%clk 0:01:34.1]} 22. Kh1
{[%clk 0:01:59.3]} 22... Qg3 {[%clk 0:01:17.9]} 23. Qxg3 {[%clk 0:01:34.2]}
23... Bxg3 {[%clk 0:01:18.8]} 24. Rxe8 {[%clk 0:01:31.5]} 24... Rxe8 {[%clk
0:01:18.4]} 25. Kg1 {[%clk 0:01:30.7]} 25... Re3 {[%clk 0:01:13.3]} 26. Rd1
{[%clk 0:01:28.2]} 26... h5 {[%clk 0:01:07.6]} 27. Kf1 {[%clk 0:01:27.7]} 27...
h4 {[%clk 0:01:07.5]} 28. Be2 {[%clk 0:01:28.2]} 28... Kf7 {[%clk 0:00:59.6]}
29. Rd3 {[%clk 0:01:27.4]} 29... Re5 {[%clk 0:00:57.6]} 30. Rd2 {[%clk
0:01:10.8]} 30... Ke7 {[%clk 0:00:48.2]} 31. Rd4 {[%clk 0:00:54.1]} 31... Kd6
{[%clk 0:00:42.4]} 32. Rg4 {[%clk 0:00:53.5]} 32... g5 {[%clk 0:00:41.8]} 33.
Rd4 {[%clk 0:00:54]} 33... Kc5 {[%clk 0:00:37.8]} 34. Rd3 {[%clk 0:00:48.9]}
34... Kd6 {[%clk 0:00:29]} 35. Rd4 {[%clk 0:00:48.8]} 35... b6 {[%clk 0:00:28]}
36. Rd1 {[%clk 0:00:44.6]} 36... Kc5 {[%clk 0:00:23.4]} 37. Rd2 {[%clk
0:00:44.5]} 37... Re4 {[%clk 0:00:22.1]} 38. b3 {[%clk 0:00:43.7]} 38... Re3
{[%clk 0:00:17.9]} 39. Rd3 {[%clk 0:00:38.5]} 39... Re7 {[%clk 0:00:15.4]} 40.
Rd1 {[%clk 0:00:31.9]} 40... Kd6 {[%clk 0:00:10.4]} 41. Rd3 {[%clk 0:00:31.1]}
41... Kc7 {[%clk 0:00:04.9]} 42. Rd1 {[%clk 0:00:30.4]} 42... Re5 {[%clk
0:00:04.5]} 43. Rd3 {[%clk 0:00:25.4]} 43... Kb7 {[%clk 0:00:04.3]} 44. Rd1
{[%clk 0:00:24.9]} 44... Kb8 {[%clk 0:00:04.7]} 45. Rd2 {[%clk 0:00:24.8]} 45...
Kc7 {[%clk 0:00:04.8]} 46. Rd1 {[%clk 0:00:25.1]} 46... Kd6 {[%clk 0:00:03.7]}
47. Rd2 {[%clk 0:00:25.3]} 47... Re7 {[%clk 0:00:03]} 48. Rd3 {[%clk 0:00:24.9]}
48... Re4 {[%clk 0:00:03.4]} 49. Rd1 {[%clk 0:00:23.9]} 49... Kc5 {[%clk
0:00:03.9]} 50. Rd3 {[%clk 0:00:23.7]} 50... Re8 {[%clk 0:00:03.7]} 51. Rd1
{[%clk 0:00:23.7]} 51... Bf4 {[%clk 0:00:03.9]} 52. Rd3 {[%clk 0:00:21.2]} 52...
Be5 {[%clk 0:00:03.1]} 53. Bf3 {[%clk 0:00:20.6]} 53... Bg3 {[%clk 0:00:03.1]}
54. Be2 {[%clk 0:00:20.7]} 54... Re6 {[%clk 0:00:02.7]} 55. Rd1 {[%clk
0:00:20.2]} 55... Rf6+ {[%clk 0:00:03]} 56. Bf3 {[%clk 0:00:19.7]} 56... Be5
{[%clk 0:00:03.2]} 57. Rd3 {[%clk 0:00:19.2]} 57... Rf4 {[%clk 0:00:03.2]} 58.
Ke2 {[%clk 0:00:19.2]} 58... Rf7 {[%clk 0:00:03.5]} 59. Kd1 {[%clk 0:00:19]}
59... Bf4 {[%clk 0:00:03.8]} 60. Kc2 {[%clk 0:00:18.4]} 60... Re7 {[%clk
0:00:04.1]} 61. Rd1 {[%clk 0:00:18.8]} 61... Kd6 {[%clk 0:00:04.3]} 62. Kd3
{[%clk 0:00:19.1]} 62... Re3+ {[%clk 0:00:04.1]} 63. Kc2 {[%clk 0:00:19.3]}
63... Kc5 {[%clk 0:00:04.5]} 64. Rd3 {[%clk 0:00:19.5]} 64... Re7 {[%clk
0:00:04.7]} 65. Rd1 {[%clk 0:00:20.4]} 65... b5 {[%clk 0:00:05.1]} 66. axb5
{[%clk 0:00:20.1]} 66... Kxb5 {[%clk 0:00:06]} 67. Rd3 {[%clk 0:00:18.5]} 67...
Kc5 {[%clk 0:00:06]} 68. Rd1 {[%clk 0:00:19]} 68... Re3 {[%clk 0:00:05.8]} 69.
Rd3 {[%clk 0:00:19.4]} 69... Re8 {[%clk 0:00:06.2]} 70. Rd1 {[%clk 0:00:20]}
70... Kb5 {[%clk 0:00:06.5]} 71. Rd3 {[%clk 0:00:19.9]} 71... a4 {[%clk
0:00:06.1]} 72. bxa4+ {[%clk 0:00:19.8]} 72... Kxa4 {[%clk 0:00:06.5]} 73. Rd4+
{[%clk 0:00:20.7]} 73... Kb5 {[%clk 0:00:06.5]} 74. Rd1 {[%clk 0:00:21.6]} 74...
Kc5 {[%clk 0:00:06.5]} 75. Rd3 {[%clk 0:00:21.1]} 75... Ra8 {[%clk 0:00:06.6]}
76. Kb2 {[%clk 0:00:18.1]} 76... Rb8+ {[%clk 0:00:06.5]} 77. Kc2 {[%clk
0:00:18.4]} 77... Ra8 {[%clk 0:00:06.7]} 78. Kb2 {[%clk 0:00:18.4]} 78... Be5
{[%clk 0:00:07.2]} 79. Re3 {[%clk 0:00:15.9]} 79... Kd6 {[%clk 0:00:07.5]} 80.
Kc2 {[%clk 0:00:13.2]} 80... Ra2+ {[%clk 0:00:07.4]} 81. Kd3 {[%clk 0:00:14.1]}
81... Ra3 {[%clk 0:00:06.6]} 82. Kd2 {[%clk 0:00:14.1]} 82... Bf4 {[%clk
0:00:06]} 83. Kd3 {[%clk 0:00:13.1]} 83... Bxe3 {[%clk 0:00:06.9]} 84. Kxe3
{[%clk 0:00:14]} 84... Rxc3+ {[%clk 0:00:06.8]} 85. Kd4 {[%clk 0:00:14.9]} 85...
Rc4+ {[%clk 0:00:07.3]} 86. Kd3 {[%clk 0:00:14.4]} 86... Rf4 {[%clk 0:00:08.2]}
87. Ke3 {[%clk 0:00:14.5]} 87... Ke5 {[%clk 0:00:08.4]} 0-1

[Event "Early-Titled-Tuesday-Blitz-February-06-2024"]
[Site "Chess.com"]
[Date "2024.02.06"]
[Round "4"]
[White "Orest_Vovk"]
[Black "BardArtem"]
[Result "1/2-1/2"]
[WhiteElo "2562"]
[BlackElo "2767"]
[TimeControl "180+1"]
[EndTime "8:41:48 PST"]
[Termination "Game drawn - insufficient material"]

1. e4 {[%clk 0:03:00.9]} 1... e5 {[%clk 0:02:57.6]} 2. Nf3 {[%clk 0:02:59.6]}
2... Nc6 {[%clk 0:02:57.4]} 3. Nc3 {[%clk 0:02:59.5]} 3... Nf6 {[%clk
0:02:54.3]} 4. Bb5 {[%clk 0:02:59.8]} 4... Bb4 {[%clk 0:02:48.9]} 5. Bxc6 {[%clk
0:02:56.7]} 5... bxc6 {[%clk 0:02:46.8]} 6. O-O {[%clk 0:02:56.3]} 6... d6
{[%clk 0:02:45]} 7. h3 {[%clk 0:02:50]} 7... O-O {[%clk 0:02:43.3]} 8. d3 {[%clk
0:02:47.2]} 8... Bxc3 {[%clk 0:02:39.1]} 9. bxc3 {[%clk 0:02:46.7]} 9... Re8
{[%clk 0:02:38]} 10. Nh2 {[%clk 0:02:39.4]} 10... d5 {[%clk 0:02:36.3]} 11. Qf3
{[%clk 0:02:30.3]} 11... h6 {[%clk 0:02:32]} 12. Be3 {[%clk 0:02:22.2]} 12...
Qe7 {[%clk 0:02:17.4]} 13. a4 {[%clk 0:02:10]} 13... Bb7 {[%clk 0:02:04.3]} 14.
Rfb1 {[%clk 0:02:04.5]} 14... Bc8 {[%clk 0:01:58.9]} 15. a5 {[%clk 0:01:57.5]}
15... a6 {[%clk 0:01:53.5]} 16. g4 {[%clk 0:01:32.9]} 16... Qe6 {[%clk
0:01:45.6]} 17. Rb4 {[%clk 0:01:20.4]} 17... Bd7 {[%clk 0:01:37.9]} 18. Nf1
{[%clk 0:01:13.3]} 18... h5 {[%clk 0:01:29.6]} 19. g5 {[%clk 0:01:12.4]} 19...
Nh7 {[%clk 0:01:28.8]} 20. h4 {[%clk 0:01:09.3]} 20... Qg4+ {[%clk 0:01:19.6]}
21. Qxg4 {[%clk 0:01:08.9]} 21... Bxg4 {[%clk 0:01:17.9]} 22. Rb7 {[%clk
0:01:00]} 22... Rec8 {[%clk 0:01:06.1]} 23. Kg2 {[%clk 0:00:48.7]} 23... Nf8
{[%clk 0:01:04.5]} 24. f3 {[%clk 0:00:48.1]} 24... Be6 {[%clk 0:01:04.2]} 25.
Ng3 {[%clk 0:00:47.2]} 25... Ng6 {[%clk 0:01:03.6]} 26. Nxh5 {[%clk 0:00:40.3]}
26... Nxh4+ {[%clk 0:01:03.8]} 27. Kg3 {[%clk 0:00:40.3]} 27... Ng6 {[%clk
0:01:04]} 28. f4 {[%clk 0:00:38.1]} 28... dxe4 {[%clk 0:01:01.2]} 29. dxe4
{[%clk 0:00:35.9]} 29... exf4+ {[%clk 0:01:02.1]} 30. Nxf4 {[%clk 0:00:35.3]}
30... Ne5 {[%clk 0:01:02.7]} 31. Nxe6 {[%clk 0:00:32.3]} 31... fxe6 {[%clk
0:01:03.6]} 32. Bf4 {[%clk 0:00:31.6]} 32... Nc4 {[%clk 0:01:04.1]} 33. Rxc7
{[%clk 0:00:29.1]} 33... Rxc7 {[%clk 0:01:02.7]} 34. Bxc7 {[%clk 0:00:30]} 34...
Rf8 {[%clk 0:01:02.8]} 35. Rd1 {[%clk 0:00:23.1]} 35... Kh7 {[%clk 0:00:59.7]}
36. Rd4 {[%clk 0:00:19.4]} 36... Ne3 {[%clk 0:00:59.3]} 37. Rd6 {[%clk
0:00:16.7]} 37... Nxc2 {[%clk 0:00:51.9]} 38. Rxe6 {[%clk 0:00:15]} 38... Ne3
{[%clk 0:00:46.7]} 39. g6+ {[%clk 0:00:15.2]} 39... Kg8 {[%clk 0:00:42.7]} 40.
Rxc6 {[%clk 0:00:15]} 40... Rc8 {[%clk 0:00:42.5]} 41. Rb6 {[%clk 0:00:12.5]}
41... Nc4 {[%clk 0:00:41.2]} 42. Rc6 {[%clk 0:00:07.7]} 42... Ne5 {[%clk
0:00:35.2]} 43. Rxa6 {[%clk 0:00:06.7]} 43... Nd7 {[%clk 0:00:32.5]} 44. Ra7
{[%clk 0:00:05.7]} 44... Kf8 {[%clk 0:00:31.8]} 45. c4 {[%clk 0:00:05.1]} 45...
Ke7 {[%clk 0:00:31.1]} 46. e5 {[%clk 0:00:04.7]} 46... Ke6 {[%clk 0:00:31.1]}
47. Bd6 {[%clk 0:00:04.2]} 47... Rxc4 {[%clk 0:00:30]} 48. Ra6 {[%clk
0:00:04.6]} 48... Kf5 {[%clk 0:00:28.7]} 49. Ra7 {[%clk 0:00:03]} 49... Ke6
{[%clk 0:00:25]} 50. Ra6 {[%clk 0:00:03.3]} 50... Ra4 {[%clk 0:00:17.3]} 51. Kf3
{[%clk 0:00:03.4]} 51... Kf5 {[%clk 0:00:16.7]} 52. Ra7 {[%clk 0:00:03]} 52...
Ke6 {[%clk 0:00:16.8]} 53. Ke2 {[%clk 0:00:03.2]} 53... Rg4 {[%clk 0:00:15.2]}
54. a6 {[%clk 0:00:03.2]} 54... Ra4 {[%clk 0:00:13.4]} 55. Ra8 {[%clk 0:00:03]}
55... Nb6 {[%clk 0:00:13.6]} 56. Re8+ {[%clk 0:00:02.7]} 56... Kd5 {[%clk
0:00:13.7]} 57. Re7 {[%clk 0:00:02.6]} 57... Rxa6 {[%clk 0:00:13]} 58. Rxg7
{[%clk 0:00:02.8]} 58... Ke4 {[%clk 0:00:11.8]} 59. Kf2 {[%clk 0:00:02.1]} 59...
Nd5 {[%clk 0:00:11.5]} 60. Kg3 {[%clk 0:00:02.3]} 60... Ra3+ {[%clk 0:00:10.6]}
61. Kg4 {[%clk 0:00:02]} 61... Nf4 {[%clk 0:00:06.3]} 62. Kg5 {[%clk 0:00:02.2]}
62... Ne6+ {[%clk 0:00:05.6]} 63. Kf6 {[%clk 0:00:01.9]} 63... Nxg7 {[%clk
0:00:06.5]} 64. Kxg7 {[%clk 0:00:02.2]} 64... Kf5 {[%clk 0:00:07.4]} 65. Kh7
{[%clk 0:00:02.5]} 65... Rh3+ {[%clk 0:00:07.3]} 66. Kg7 {[%clk 0:00:03.4]}
66... Rg3 {[%clk 0:00:07.8]} 67. Kf7 {[%clk 0:00:03.9]} 67... Rxg6 {[%clk
0:00:08]} 68. Ke7 {[%clk 0:00:04.1]} 68... Rh6 {[%clk 0:00:07.4]} 69. Kd7 {[%clk
0:00:05]} 69... Rh7+ {[%clk 0:00:07.4]} 70. Kc6 {[%clk 0:00:05.2]} 70... Ke6
{[%clk 0:00:08.3]} 71. Kc5 {[%clk 0:00:05.4]} 71... Rh4 {[%clk 0:00:08.5]} 72.
Kc6 {[%clk 0:00:05.9]} 72... Rc4+ {[%clk 0:00:08.7]} 73. Kb5 {[%clk 0:00:06.2]}
73... Kd5 {[%clk 0:00:09.2]} 74. Kb6 {[%clk 0:00:06.4]} 74... Rh4 {[%clk
0:00:07.6]} 75. Kc7 {[%clk 0:00:06.4]} 75... Rh7+ {[%clk 0:00:07.6]} 76. Kb6
{[%clk 0:00:06.6]} 76... Rg7 {[%clk 0:00:07.6]} 77. Ka6 {[%clk 0:00:05.2]} 77...
Kc6 {[%clk 0:00:07.5]} 78. Ka5 {[%clk 0:00:05.5]} 78... Rb7 {[%clk 0:00:08.1]}
79. Ka4 {[%clk 0:00:05.7]} 79... Kd5 {[%clk 0:00:08.5]} 80. Ka5 {[%clk
0:00:05.9]} 80... Kc6 {[%clk 0:00:06.3]} 81. Ka4 {[%clk 0:00:05.8]} 81... Rb1
{[%clk 0:00:05.2]} 82. Ka5 {[%clk 0:00:04.8]} 82... Kd5 {[%clk 0:00:05.8]} 83.
Ka4 {[%clk 0:00:04]} 83... Kc4 {[%clk 0:00:06.4]} 84. Ka5 {[%clk 0:00:04.3]}
84... Rb5+ {[%clk 0:00:06.7]} 85. Ka6 {[%clk 0:00:04.5]} 85... Rd5 {[%clk
0:00:06.2]} 86. Kb6 {[%clk 0:00:04.5]} 86... Kd4 {[%clk 0:00:04.6]} 87. Kc6
{[%clk 0:00:04.5]} 87... Ra5 {[%clk 0:00:04]} 88. e6 {[%clk 0:00:04.1]} 88...
Ra6+ {[%clk 0:00:04.6]} 89. Kd7 {[%clk 0:00:04.4]} 89... Kd5 {[%clk 0:00:05.5]}
90. e7 {[%clk 0:00:02.8]} 90... Rxd6+ {[%clk 0:00:06.1]} 91. Kc7 {[%clk
0:00:03.2]} 91... Re6 {[%clk 0:00:05.1]} 92. Kd7 {[%clk 0:00:03.6]} 92... Rd6+
{[%clk 0:00:05.8]} 93. Kc7 {[%clk 0:00:04]} 93... Rc6+ {[%clk 0:00:05.3]} 94.
Kd7 {[%clk 0:00:04.3]} 94... Re6 {[%clk 0:00:05.2]} 95. e8=Q {[%clk 0:00:03.8]}
95... Rxe8 {[%clk 0:00:06.1]} 96. Kxe8 {[%clk 0:00:04.3]} 1/2-1/2